Cogmind - Beta 15 @@@ ROGUE MODE // 2025.06.15 @ 06:04:11 Player: Storm Mk9 Result: Destroyed by X-57 Shotgunner with High-powered Shotgun Performance ------------- Evolutions (2) 1000 Regions Visited (3) 600 Robots Destroyed (23) 115 Value Destroyed (558) 558 Prototype IDs (1) 20 Alien Tech Used (0) 0 Bonus (0) 0 TOTAL SCORE: 2293 Bonus ------- None Cogmind --------- Core Integrity 0/550 Matter 198/300 Energy 119/275 System Corruption 9% Temperature Hot (290) Movement Core (550) Ox10 Location -8/Materials Parts ------- > --- POWER (1) -------- Deuterium Engine > --- PROPULSION (2) --- (None) > --- UTILITY (5) ------ Large Storage Unit Improved Targeting Computer > --- WEAPON (3) ------- Medium Laser > --- INVENTORY (15) --- Light Nuclear Core Large Storage Unit Improved Signal Interpreter Peak State ------------ > --- POWER ------------ Deuterium Engine > --- PROPULSION ------- Light Treads Light Treads > --- UTILITY ---------- Cryofiber Web Large Storage Unit Improved Targeting Computer Heavy Armor Plating > --- WEAPON ----------- Heavy EM Shotgun Beam Rifle Heavy Assault Rifle > --- INVENTORY -------- Deuterium Engine Light Nuclear Core Large Storage Unit Improved Signal Interpreter Medium Laser Medium Laser Medium Laser Particle Gun Assault Rifle Shotgun [Rating: 26] Favorites ----------- Power Light Ion Engine Engine Light Ion Engine Propulsion Light Treads Treads Light Treads Leg Aluminum Leg Utility Seismic Detector Device Seismic Detector Storage Large Storage Unit Processor Improved Targeting Computer Protection Weapon Shielding Weapon Light Assault Rifle Energy Gun Medium Laser Ballistic Gun Light Assault Rifle Impact Weapon Heavy Flail Build | -11 -10 -10 -8 ------- Run | Yrd Mat Sub Mat Slots Evolved 4 | . . . 4 Power . | . . . . Propulsion . | . . . . Utility 3 | . . . 3 Weapon 1 | . . . 1 Parts Attached 37 | 7 7 . 23 Power 5 | 1 2 . 2 Engine 5 | 1 2 . 2 Core . | . . . . Reactor . | . . . . Propulsion 6 | 2 2 . 2 Treads 4 | . 2 . 2 Leg 2 | 2 . . . Wheel . | . . . . Hover . | . . . . Flight . | . . . . Utility 12 | 2 2 . 8 Device 4 | 1 . . 3 Storage 3 | 1 1 . 1 Processor 2 | . . . 2 Hackware . | . . . . Protection 3 | . 1 . 2 Artifact . | . . . . Weapon 14 | 2 1 . 11 Energy Gun 7 | 1 1 . 5 Energy Cannon . | . . . . Ballistic Gun 6 | 1 . . 5 Ballistic Cannon . | . . . . Launcher . | . . . . Special Weapon . | . . . . Impact Weapon 1 | . . . 1 Slashing Weapon . | . . . . Piercing Weapon . | . . . . Special Melee Weapon . | . . . . Unidentified Prototypes 1 | . . . 1 Parts Lost 25 | . 2 . 23 Power 3 | . 1 . 2 Propulsion 5 | . 1 . 4 Utility 6 | . . . 6 Weapon 11 | . . . 11 Highest Loss Streak 15 | . 1 . 15 To Critical Strikes . | . . . . Average Backups 10 | 3 8 8 11 Power 1 | . . . 2 Propulsion . | 1 1 . . Utility 2 | . 2 3 3 Weapon 4 | 1 3 5 5 Tool/Special . | . . . . Unused Backups 4 | . . . 4 Power 1 | . . . 1 Propulsion . | . . . . Utility 2 | . . . 2 Weapon 1 | . . . 1 Tool/Special . | . . . . Average Slot Usage (%) 98 | . 99 100 97 Engine 10 | . 13 14 9 Treads 14 | . 4 28 17 Leg 6 | . 23 . . Device 15 | . 12 . 19 Storage 10 | . 14 14 9 Processor 5 | . . . 8 Protection 6 | . 1 14 7 Energy Gun 11 | . 14 14 9 Ballistic Gun 15 | . 14 14 16 Peak Build Rating 26 | 7 8 8 26 Average Rating 13 | 4 7 8 16 On Entrance 5 | . 7 8 8 Naked Turns . | . . . . Heaviest Build 55 | 14 19 17 55 Greatest Support 40 | 20 40 40 40 Greatest Overweight (x) 1 | . . . 1 Average Overweight (x) . | . . . . Largest Inventory Capacity 15 | 8 10 10 15 Average Capacity 12 | 6 9 10 14 Most Carried 14 | 6 10 8 14 Average Carried 10 | 3 8 8 11 Final Capacity 15 | 8 10 10 15 Final Carried 8 | 5 8 8 3 Class Distribution -------------------- 47% | Scavenger-Gunner 40% | Mutant 5% | Scavenger-Mutant 5% | Skirmisher Dominant Class ---------------- Mutant | -10/Materials Mutant | -10/Subcaves Scavenger-Gunner | -8/Materials Resources | -11 -10 -10 -8 ----------- Run | Yrd Mat Sub Mat Matter Collected 607 | 279 130 . 198 Remotely . | . . . . Salvage Created 808 | 105 327 . 376 Parts 39 | 5 17 . 17 Haulers Intercepted 1 | . 1 . . Recyclers Shooed 1 | 1 . . . Parts Field Recycled . | . . . . Retrieved Matter . | . . . . Parts Self-Destructed 2 | . . 2 . Prevented . | . . . . Kills | -11 -10 -10 -8 ------- Run | Yrd Mat Sub Mat Combat Hostiles Destroyed 20 | . 10 . 10 Guns 19 | . 10 . 9 Classes Destroyed 7 | 2 3 . 2 Tunneler 1 | 1 . . . Hauler 1 | . 1 . . Recycler 1 | 1 . . . Swarmer 10 | . 6 . 4 Grunt 6 | . 4 . 2 Sentry 2 | . . . 2 Hunter 2 | . . . 2 Best Kill Streak 5 | 1 4 . 5 Combat Bots Only 5 | . 4 . 5 Max Kills in Single Turn 2 | 1 1 . 2 Gunslinging . | . . . . Exploded . | . . . . Melee . | . . . . Uniques/NPCs Destroyed . | . . . . Combat | -11 -10 -10 -8 -------- Run | Yrd Mat Sub Mat Hostile Shots Fired 317 | . 70 . 247 Missed 106 | . 18 . 88 Hits 211 | . 52 . 159 Projectile 211 | . 52 . 159 Damage Taken 3441 | . 573 . 2868 Core 699 | . 138 . 561 Absorbed by Shields . | . . . . Redirected to Shielding 75 | . 8 . 67 Core Remaining (%) 72 | 100 . 44 . Volleys Fired 92 | 9 40 . 43 Largest 3 | 2 2 . 3 Hottest 135 | 70 70 . 135 Shots Fired 224 | 18 80 . 126 Gun 224 | 18 80 . 126 Cannon . | . . . . Launcher . | . . . . Special . | . . . . Kinetic 121 | 9 40 . 72 Thermal 96 | 9 40 . 47 Explosive . | . . . . Electromagnetic 7 | . . . 7 Robot Hit Streak 13 | 4 13 . 12 Robot Miss Streak 5 | 4 2 . 5 Penetration Max . | . . . . Secondary Targets 5 | . 3 . 2 Max Gunslinging Chain 1 | . 1 . 1 Shots Hit Robots 152 | 8 57 . 87 Core Hits 45 | 3 17 . 25 Critical Kills . | . . . . Critical Parts Destroyed 3 | . 2 . 1 Critical Strikes 7 | 1 4 . 2 Burn 4 | 1 2 . 1 Destroy 3 | . 2 . 1 Melee Attacks 10 | . . . 10 Impact 10 | . . . 10 Slashing . | . . . . Piercing . | . . . . Sneak Attacks . | . . . . Combat Hostiles . | . . . . Follow-up Attacks . | . . . . Damage Inflicted 1761 | 85 592 . 1084 Guns 1692 | 85 592 . 1015 Cannons . | . . . . Explosions . | . . . . Melee 69 | . . . 69 Ramming . | . . . . Kinetic 716 | 35 211 . 470 Thermal 851 | 50 381 . 420 Explosive . | . . . . Electromagnetic 125 | . . . 125 Impact 69 | . . . 69 Slashing . | . . . . Piercing . | . . . . Highest Corruption 9 | . 1 1 9 Average Corruption 3 | . 1 1 9 Corruption Purged . | . . . . Corruption Blocked . | . . . . Effects 10 | . 1 1 8 Message Errors 2 | . 1 . 1 Matter Fused 4 | . . . 4 Energy Discharges 1 | . . 1 . Parts Rejected 1 | . . . 1 Parts Fused 1 | . . . 1 Data Loss (minor) 1 | . . . 1 Overload Shots . | . . . . Overflow Damage 4 | . . . 4 Projectiles . | . . . . Explosions . | . . . . Melee 4 | . . . 4 Knockbacks . | . . . . Impact . | . . . . Kinetic . | . . . . Secondary . | . . . . Self-Inflicted Damage . | . . . . Shots . | . . . . Rammed . | . . . . Targets Rammed . | . . . . Kicked . | . . . . Crushed . | . . . . Highest Temperature 290 | 140 252 . 290 Average Temperature 82 | 63 86 . 82 Received Heat Transfer 453 | . 246 . 207 Siege Activations . | . . . . Martial Activations . | . . . . Shielding Activations . | . . . . Robots Disrupted . | . . . . Combat Hostiles . | . . . . Robots Corrupted 1 | . . . 1 Combat Hostiles 1 | . . . 1 Parts Fried 2 | . . . 2 Impact Corruptions 1 | . . . 1 Robots Melted . | . . . . Combat Hostiles . | . . . . Parts Melted 4 | . 3 . 1 Heat Transferred 2738 | 222 1258 . 1258 Parts Sabotaged . | . . . . Parts Stolen . | . . . . Parts Stripped . | . . . . Power Chain Reactions . | . . . . Alert | -11 -10 -10 -8 ------- Run | Yrd Mat Sub Mat Maximum Alert Level . | . . . . Low Security (%) 100 | 100 100 . 100 Level 1 . | . . . . Level 2 . | . . . . Level 3 . | . . . . Level 4 . | . . . . Level 5 . | . . . . High Security . | . . . . Max Security . | . . . . Peak Influence 100 | 5 100 . 65 Initial . | . . . . Average 10 | . 29 . 3 Influence Increases 587 | 10 302 . 275 Destroy 0b10 Robot/C 400 | . 200 . 200 Destroy 0b10 Robot/NC 15 | 10 5 . . Destroy Leader 92 | . 42 . 50 Successful Hack 29 | . 10 . 19 Destroy Structure 6 | . . . 6 Lose Combat Pursuer 45 | . 45 . . Influence Decreases 587 | 10 241 61 275 Entered New Map 30 | . . 30 . Time Decay 404 | 10 221 31 142 Lost Part 153 | . 20 . 133 Squads Dispatched 3 | . 1 . 2 Investigation . | . . . . Extermination . | . . . . Reinforcement 3 | . 1 . 2 Assault . | . . . . Garrison . | . . . . Intercept . | . . . . Searches Triggered . | . . . . Construction Impeded . | . . . . Haulers Reinforced . | . . . . Active Scanning Responses . | . . . . Cargo Convoy Interrupts . | . . . . Stealth | -11 -10 -10 -8 --------- Run | Yrd Mat Sub Mat Distress Signals . | . . . . Communications Jammed . | . . . . Distress Signals . | . . . . Times Spotted 36 | . 18 . 18 Peak Tracking Total 9 | . 8 . 9 Tactical Retreats 2 | . 2 . . Traps | -11 -10 -10 -8 ------- Run | Yrd Mat Sub Mat Traps Triggered 3 | . 3 . . Indirectly . | . . . . Trap Hack Attempts . | . . . . Triggered . | . . . . Disarmed . | . . . . Reprogrammed . | . . . . Reused . | . . . . Traps Extracted . | . . . . Installed . | . . . . Triggered . | . . . . Machines | -11 -10 -10 -8 ---------- Run | Yrd Mat Sub Mat Machines Disabled . | . . . . Max in Single Turn . | . . . . Machines Repaired . | . . . . Machines Dismantled . | . . . . Machines Sabotaged . | . . . . Overloaded Fab Kills . | . . . . Hacking | -11 -10 -10 -8 --------- Run | Yrd Mat Sub Mat Machines Accessed 7 | . 3 1 3 Terminals 5 | . 2 . 3 Fabricators . | . . . . Repair Stations . | . . . . Recycling Units 1 | . 1 . . Scanalyzers . | . . . . Garrison Access . | . . . . Total Hacks 21 | . 6 5 10 Successful 14 | . 3 5 6 Failed 7 | . 3 . 4 Catastrophic . | . . . . Database Lockouts . | . . . . Manual 7 | . 2 . 5 Terminals 15 | . 5 . 10 Fabricators . | . . . . Repair Stations . | . . . . Recycling Units 1 | . 1 . . Scanalyzers . | . . . . Garrison Access . | . . . . Terminal Hacks 8 | . 1 5 2 Record 5 | . . 5 . Branch Access Points 1 | . . . 1 Locate Traps 2 | . 1 . 1 Fabricator Hacks . | . . . . Repair Station Hacks . | . . . . Recycling Unit Hacks 1 | . 1 . . Report Inventory 1 | . 1 . . Scanalyzer . | . . . . Garrison Access Hacks . | . . . . Unauthorized Hacks 5 | . 1 . 4 Terminals 5 | . 1 . 4 Track 1 | . . . 1 Assimilate 1 | . 1 . . Botnet 2 | . . . 2 Operators 1 | . . . 1 Fabricators . | . . . . Repair Stations . | . . . . Recycling Units . | . . . . Scanalyzers . | . . . . Garrison Access . | . . . . Data Cores Recovered . | . . . . Used . | . . . . Hacking Detections 5 | . 2 . 3 Full Trace Events 1 | . 1 . . Feedback Events . | . . . . Feedback Blocked . | . . . . Robot Schematics Acquired . | . . . . Robots Built . | . . . . Authchips . | . . . . Time . | . . . . Total Robot Build Rating . | . . . . Part Schematics Acquired . | . . . . Parts Built . | . . . . Authchips . | . . . . Time . | . . . . Total Part Build Rating . | . . . . Parts Repaired . | . . . . Time . | . . . . Parts Recycled . | . . . . Recycled Matter . | . . . . Retrieved Matter . | . . . . Retrieved Components . | . . . . Parts Scanalyzed . | . . . . Part Schematics Acquired . | . . . . Parts Damaged . | . . . . Bothacking | -11 -10 -10 -8 ------------ Run | Yrd Mat Sub Mat Used RIF Installer . | . . . . Robots Hacked . | . . . . Non-combat . | . . . . Combat . | . . . . Robot Hacks Applied . | . . . . Relay Couplers Released . | . . . . Fabnet Peak Effective % . | . . . . Robots Rewired . | . . . . Allies Hacked . | . . . . Hacks Repelled . | . . . . Allies | -11 -10 -10 -8 -------- Run | Yrd Mat Sub Mat Total Allies . | . . . . Largest Group . | . . . . Highest-Rated Group . | . . . . Highest-Rated Ally . | . . . . Total Orders . | . . . . Ally Attacks . | . . . . Total Damage . | . . . . Kills . | . . . . Allies Corrupted . | . . . . Allies Melted . | . . . . Intel | -11 -10 -10 -8 ------- Run | Yrd Mat Sub Mat Active Infowar (turns) 2557 | 4 710 . 1843 Terrain 1669 | . . . 1669 Seismic 2556 | 4 710 . 1842 Robot Analysis Total . | . . . . Derelict Logs Recovered 1 | . . 1 . Drone Launches . | . . . . Drone Recoveries . | . . . . Exploration | -11 -10 -10 -8 ------------- Run | Yrd Mat Sub Mat Turns Passed 3065 | 123 819 224 1899 Spaces Moved 1008 | 60 373 141 434 Core 4 | 4 . . . Treads 595 | . 20 141 434 Legs 409 | 56 353 . . Wheels . | . . . . Hover . | . . . . Flight . | . . . . Fastest Speed 50 | 50 120 160 160 Average Speed 147 | 115 122 160 169 Slowest Speed 240 | 120 160 160 240 Overloaded Moves . | . . . . Propulsion Burnouts . | . . . . Robots Hopped . | . . . . Potential Cave-ins 3 | . . . 3 Cave-ins Triggered 1 | . . . 1 Exploration Rate (%) 27 | 5 58 16 30 Regions Visited 3 Branch Regions 1 Pre-discovered Areas 1 | . . 1 . Known Exits Taken . | . . . . Unknown Exits Taken 3 | 1 1 1 . Scrap Searched . | . . . . Spaces Dug 8 | . . . 8 Terrain Destroyed 8 | . . . 8 Melee 8 | . . . 8 Projectile . | . . . . AOE . | . . . . Terrain Rammed . | . . . . Walls Destroyed . | . . . . Machines Disabled . | . . . . Actions | -11 -10 -10 -8 --------- Run | Yrd Mat Sub Mat Total 2399 | 97 664 140 1498 Wait 1202 | 10 232 . 960 Move 1004 | 59 372 140 433 Hop . | . . . . Pick Up 39 | 12 6 . 21 Fast Attach 3 | . 3 . . Attach 31 | 7 2 . 22 Detach . | . . . . Swap 10 | . 5 . 5 Drop 7 | . 4 . 3 Fire 92 | 9 40 . 43 Melee 10 | . . . 10 Ram . | . . . . Kick . | . . . . Crush . | . . . . Escape Stasis 1 | . . . 1 Rewire . | . . . . Trap . | . . . . Miscellaneous . | . . . . Route ------- -11/Scrapyard -10/Materials (discovered 2 exits: [*Mat] / *Sub) -10/Subcaves -8/Materials History --------- Turn | Location | Event 25 | -11/Scrapyard | Discovered new exit (range 15) 124 | -11/Scrapyard | Entered Materials 312 | -10/Materials | Build established: Mutant 561 | -10/Materials | Discovered new exit (range 16) 857 | -10/Materials | Core integrity fell below 50% 914 | -10/Materials | Discovered new exit (range 5) 943 | -10/Materials | Entered Subcaves 956 | -10/Subcaves | Learned Materials stockpile data 1097 | -10/Subcaves | Discovered new exit (range 13) 1118 | -10/Subcaves | Visited Clippyterm 1123 | -10/Subcaves | Learned Factory garrison access intel 1123 | -10/Subcaves | Learned location of Extension (-6) 1167 | -10/Subcaves | Entered Materials 1167 | -8/Materials | Evolved 4 slots: Utility x3, Weapon x1 1673 | -8/Materials | Build established: Scavenger-Gunner 2582 | -8/Materials | Lost 3 parts (1p1u1w) 2836 | -8/Materials | Crushed by falling debris 2867 | -8/Materials | Lost 3 parts (1n1u1w) 3035 | -8/Materials | Core integrity fell below 50% 3054 | -8/Materials | Core integrity fell below 20% 3066 | -8/Materials | Destroyed by X-57 Shotgunner with High-powered Shotgun Last Messages --------------- 03040_ Switching to secondary target: H-61 Shepherd. 03043_ Shotgun destroyed. 03044_ K-01 Serf collects debris. 03044_ Hvy. EM Shotgun destroyed. 03050_ Med. Laser destroyed. 03054_ Penetrated by Slug. 03055_ System corrupted: Component data lost. 03057_ Deuterium Engine destroyed. 03058_ R-06 Scavenger collects Lgt. Ion Engine. 03059_ Penetrated by Slug. 03059_ Med. Laser destroyed. 03059_ Processing Tank disabled. 03061_ R-06 Scavenger collects Flight Unit. 03063_ Assault Rifle destroyed. 03063_ Cryofiber Web destroyed. 03064_ Particle Gun destroyed. 03065_ R-06 Scavenger collects Lgt. Assault Rifle. 03065_ K-01 Serf collects debris. Map ----- +----------------------------------------------------+ | | | | | | | ?????????????????????????????????????????????????? | | ?????????????????????????????????????????????????? | | ?????????????????????????????????????????????????? | | ?????????????????????????????????????????????????? | | ???????????????????????????????##########????????? | | ???????????????????????????????# #????????? | | ???????????????????????????????# """ #???##???? | | ???????????????????????????????# """ =#????????? | | ???????????????????????????????# """ #??????#?? | | ???????????????????????????????# #????????# | | ???????????????????????????????# """ #?#?????#? | | ???????????????????????????????# """ #??#???### | | ???????????????????????????????#/ """ #????????? | | ???????????????????????????????# #????????? | | ????????????????????????###????#####+############# | | ???????????????????????##;######### + / #? | | ???????????????????????#; !# # ## | | ???????????????????????## """"" # # ! ## | | ????????????????????????# """"" + + ## | | ??????????????????#???### """" # # """ """ # | | ??????????????????#;###;# # # """ """ ## | | ????????????####### [;%;######## # """ """ #? | | ????????? g %![@% # ## | | ???????? Y x%* *%%% ###########? | | ????????? g x! [% % w ####?#??#?#? | | ????????? ####### %=###############??#??#???## | | ??????????????????## =%!#?????????? ?????????####? | | ???????????????????# rH#?????????? ??#???####??### | | ???????????????????# k?????????? ???####??##?#?# | | ???????????????????# ?????????? ???###???#??##?# | | ???????????????????#% ????????????T?#???#???#?#?# | | ???????????????????# !????????????"#????????#?#?? | | ???????????????????# %?????????? ??############## | | ??????????????????? ????????#??#+### | | ??????????????????? ???? ####### | | ?????????????????? ???? " ##! | | ?????????????????? ? ???? ## | | ???????????????????????????/########## o ## | | ???????????????????????????????? ##??#### ### | | ???????????????????????????????????##??## #?#"S | | ??????????????????????????????? ???????## #?#""" | | ?????????????????????????????????#??#??## #?# "" | | ???????????????????????????????? ?#?##?## #?# | | ??????????????????????????????? ?????#??# ?####### | | ???????????????????????????????##?????? ??##?#?? | | ?????????????????????????????????????? ? #??#??## | | ????????????????????????????????#?"?? ??????#? | +----------------------------------------------------+ Best States ------------- Heat Dissipation 41 Energy Generation 14 Energy Capacity 275 Matter Stores 300 Matter Capacity 300 Sight Range 16 Terrain Scan Range 16 Terrain Scan Density 10 Base Temperature (-) 100 Armor Coverage 600 Utility Shielding 33 Weapon Shielding 33 Evasion (%) 55 Targeting Accuracy 6 Recoil Reduction 2 Item Schematics ----------------- None Robot Schematics ------------------ None Fabricated ------------ Nothing Repaired ---------- Nothing Alien Tech Used ----------------- None Achievements -------------- None Challenges ------------ None Game ------ Seed PointRelayAutohacker Manual? 0 Play Time 00:28:07 Cumulative 43.4 hours Start 2025.06.15 @ 05:37:21 End 2025.06.15 @ 06:04:11 Sessions 1 Manual Loads 0 Difficulty Rogue Special Mode None Game No. 38 Rogue 19 Adventurer 0 Explorer 19 Win Type - Total 0 Types 0/0/0/0/0/0/0/0/0/0 Lore% 40 Gallery% 33 Achievement% 67 Wizard Run 0 Options --------- Layout 1 ASCII 0 Keyboard 0 Movement Mouse Keybinds 0 Fullscreen 2 Font 24/Smallcaps Map View 50x35 Zoom Use 0% Tactical HUD 1 Map Filters NONE Filters NONE Steam SD RUN: 4954c0bc-4de9-4d1f-9c08-1d0952d73662